[Event "January 2 Early 2024"]
[Site "https://www.chess.com"]
[Date "2024.01.02"]
[Round "11"]
[White "Mohammadi, Melika"]
[Black "Delgado Kuffo, Andres"]
[Result "1-0"]
[Board "105"]
[TimeControl "180+1"]
[WhiteFideId "42529271"]
[BlackFideId "3600475"]
[WhiteElo "2470"]
[BlackElo "2263"]
[WhiteTeam "IRI"]
[BlackTeam "ECU"]
[WhiteClock "0:00:24"]
[BlackClock "0:00:00"]

1. e4 {[%clk 0:03:00]}  e6 {[%clk 0:02:58]} 2. d4 {[%clk 0:03:00]}  d5 {[%clk 0:02:55]} 3. Nc3 {[%clk 0:03:00]}  Nf6 {[%clk 0:02:49]} 4. e5 {[%clk 0:03:00]}  Nfd7 {[%clk 0:02:47]} 5. Nce2 {[%clk 0:03:00]}  b6 {[%clk 0:02:45]} 6. c3 {[%clk 0:02:56]}  Ba6 {[%clk 0:02:44]} 7. Nf3 {[%clk 0:02:56]}  c5 {[%clk 0:02:43]} 8. Nf4 {[%clk 0:02:55]}  Bxf1 {[%clk 0:02:39]} 9. Kxf1 {[%clk 0:02:56]}  Nc6 {[%clk 0:02:34]} 10. h4 {[%clk 0:02:49]}  h5 {[%clk 0:02:16]} 11. Be3 {[%clk 0:02:43]}  Ne7 {[%clk 0:02:09]} 12. Ng5 {[%clk 0:02:36]}  Nf5 {[%clk 0:02:04]} 13. Qf3 {[%clk 0:02:27]}  g6 {[%clk 0:01:49]} 14. Nxd5 {[%clk 0:01:48]}  Rc8 {[%clk 0:01:23]} 15. Nf4 {[%clk 0:01:35]}  cxd4 {[%clk 0:01:13]} 16. cxd4 {[%clk 0:01:36]}  Nb8 {[%clk 0:00:39]} 17. d5 {[%clk 0:01:12]}  Nxh4 {[%clk 0:00:21]} 18. Rxh4 {[%clk 0:01:05]}  Qxg5 {[%clk 0:00:21]} 19. g3 {[%clk 0:01:01]}  Qxe5 {[%clk 0:00:19]} 20. dxe6 {[%clk 0:00:52]}  g5 {[%clk 0:00:14]} 21. exf7+ {[%clk 0:00:49]}  Kd8 {[%clk 0:00:14]} 22. Rd1+ {[%clk 0:00:36]}  Nd7 {[%clk 0:00:13]} 23. Rxh5 {[%clk 0:00:32]}  Rxh5 {[%clk 0:00:09]} 24. Qxh5 {[%clk 0:00:33]}  Rc5 {[%clk 0:00:00]} 25. Nd3 {[%clk 0:00:24]} 1-0

[Event "January 2 Early 2024"]
[Site "https://www.chess.com"]
[Date "2024.01.02"]
[Round "11"]
[White "Paragua, Megan Althea"]
[Black "Manukian, Artak"]
[Result "1-0"]
[Board "107"]
[TimeControl "180+1"]
[WhiteFideId "30973007"]
[BlackFideId "13301373"]
[WhiteElo "2366"]
[BlackElo "2577"]
[WhiteTeam "USA"]
[BlackTeam "ARM"]
[WhiteClock "0:00:06"]
[BlackClock "0:00:00"]

1. e4 {[%clk 0:02:59]}  c6 {[%clk 0:02:59]} 2. d4 {[%clk 0:02:57]}  d5 {[%clk 0:03:00]} 3. exd5 {[%clk 0:02:57]}  cxd5 {[%clk 0:03:01]} 4. c4 {[%clk 0:02:57]}  Nf6 {[%clk 0:03:01]} 5. Nc3 {[%clk 0:02:57]}  g6 {[%clk 0:03:01]} 6. cxd5 {[%clk 0:02:57]}  Bg7 {[%clk 0:03:02]} 7. Bc4 {[%clk 0:02:55]}  O-O {[%clk 0:03:02]} 8. Nf3 {[%clk 0:02:55]}  Nbd7 {[%clk 0:03:03]} 9. O-O {[%clk 0:02:55]}  Nb6 {[%clk 0:03:03]} 10. Bb3 {[%clk 0:02:56]}  Nbxd5 {[%clk 0:03:02]} 11. Re1 {[%clk 0:02:56]}  e6 {[%clk 0:03:00]} 12. Bg5 {[%clk 0:02:54]}  Nxc3 {[%clk 0:02:59]} 13. bxc3 {[%clk 0:02:53]}  h6 {[%clk 0:02:59]} 14. Bxf6 {[%clk 0:02:52]}  Bxf6 {[%clk 0:02:58]} 15. Qd2 {[%clk 0:02:51]}  Kg7 {[%clk 0:02:58]} 16. Ne5 {[%clk 0:02:50]}  a5 {[%clk 0:02:47]} 17. Ng4 {[%clk 0:02:45]}  Rh8 {[%clk 0:02:36]} 18. a4 {[%clk 0:02:39]}  Ra6 {[%clk 0:02:26]} 19. Bc4 {[%clk 0:02:37]}  Rd6 {[%clk 0:02:23]} 20. Qf4 {[%clk 0:02:34]}  Be7 {[%clk 0:02:00]} 21. Ne5 {[%clk 0:02:28]}  Rf8 {[%clk 0:01:51]} 22. Ng4 {[%clk 0:02:24]}  Bg5 {[%clk 0:01:38]} 23. Qe5+ {[%clk 0:02:23]}  f6 {[%clk 0:01:37]} 24. Qb5 {[%clk 0:02:20]}  e5 {[%clk 0:01:28]} 25. h3 {[%clk 0:01:41]}  exd4 {[%clk 0:01:14]} 26. cxd4 {[%clk 0:01:28]}  Rxd4 {[%clk 0:01:05]} 27. Qc5 {[%clk 0:01:28]}  h5 {[%clk 0:00:48]} 28. Ne3 {[%clk 0:01:15]}  Qd6 {[%clk 0:00:42]} 29. Qxd6 {[%clk 0:00:42]}  Rxd6 {[%clk 0:00:43]} 30. Bb5 {[%clk 0:00:38]}  f5 {[%clk 0:00:33]} 31. Nc4 {[%clk 0:00:37]}  Rd4 {[%clk 0:00:24]} 32. Nxa5 {[%clk 0:00:35]}  f4 {[%clk 0:00:24]} 33. f3 {[%clk 0:00:28]}  Bf6 {[%clk 0:00:22]} 34. Rad1 {[%clk 0:00:24]}  g5 {[%clk 0:00:19]} 35. Rxd4 {[%clk 0:00:20]}  Bxd4+ {[%clk 0:00:20]} 36. Kh2 {[%clk 0:00:20]}  h4 {[%clk 0:00:18]} 37. Nxb7 {[%clk 0:00:16]}  Bf2 {[%clk 0:00:15]} 38. Re7+ {[%clk 0:00:16]}  Kf6 {[%clk 0:00:15]} 39. Rc7 {[%clk 0:00:13]}  Bg3+ {[%clk 0:00:14]} 40. Kg1 {[%clk 0:00:13]}  Ke5 {[%clk 0:00:09]} 41. Re7+ {[%clk 0:00:11]}  Kd4 {[%clk 0:00:08]} 42. Nd6 {[%clk 0:00:10]}  Bf5 {[%clk 0:00:06]} 43. Nxf5+ {[%clk 0:00:07]}  Rxf5 {[%clk 0:00:07]} 44. Re4+ {[%clk 0:00:07]}  Kc5 {[%clk 0:00:07]} 45. Rc4+ {[%clk 0:00:06]}  Kb6 {[%clk 0:00:07]} 46. Rc1 {[%clk 0:00:06]}  Re5 {[%clk 0:00:06]} 47. Kf1 {[%clk 0:00:06]}  Ka5 {[%clk 0:00:06]} 48. Rd1 {[%clk 0:00:06]}  Rc5 {[%clk 0:00:06]} 49. Be2 {[%clk 0:00:06]}  Rc2 {[%clk 0:00:06]} 50. Rd5+ {[%clk 0:00:05]}  Kb4 {[%clk 0:00:05]} 51. Rd4+ {[%clk 0:00:05]}  Ka5 {[%clk 0:00:05]} 52. Rd5+ {[%clk 0:00:05]}  Kxa4 {[%clk 0:00:06]} 53. Bd1 {[%clk 0:00:05]}  Kb3 {[%clk 0:00:06]} 54. Rc5 {[%clk 0:00:05]}  Kb2 {[%clk 0:00:00]} 55. Rxc2+ {[%clk 0:00:06]} 1-0

[Event "January 2 Early 2024"]
[Site "https://www.chess.com"]
[Date "2024.01.02"]
[Round "11"]
[White "Povshednyi, Ivan"]
[Black "Lira, Suan Bruno Fernandes"]
[Result "1-0"]
[Board "108"]
[TimeControl "180+1"]
[WhiteFideId "14190907"]
[BlackFideId "22794620"]
[WhiteElo "2569"]
[BlackElo "2359"]
[WhiteTeam "UKR"]
[BlackTeam "BRA"]
[WhiteClock "0:00:54"]
[BlackClock "0:00:15"]

1. Nf3 {[%clk 0:03:00]}  d5 {[%clk 0:02:38]} 2. g3 {[%clk 0:02:39]}  Nf6 {[%clk 0:02:39]} 3. Bg2 {[%clk 0:02:39]}  c5 {[%clk 0:02:39]} 4. O-O {[%clk 0:02:39]}  Nc6 {[%clk 0:02:39]} 5. d4 {[%clk 0:02:40]}  e6 {[%clk 0:02:39]} 6. c4 {[%clk 0:02:40]}  dxc4 {[%clk 0:02:40]} 7. Ne5 {[%clk 0:02:41]}  Bd7 {[%clk 0:02:38]} 8. Nxc4 {[%clk 0:02:38]}  cxd4 {[%clk 0:02:37]} 9. Bf4 {[%clk 0:02:38]}  Nd5 {[%clk 0:01:56]} 10. Nd6+ {[%clk 0:02:27]}  Bxd6 {[%clk 0:01:56]} 11. Bxd6 {[%clk 0:02:28]}  Bc8 {[%clk 0:01:43]} 12. Ba3 {[%clk 0:02:26]}  f6 {[%clk 0:01:34]} 13. Qb3 {[%clk 0:02:16]}  Kf7 {[%clk 0:01:25]} 14. Nd2 {[%clk 0:02:11]}  b6 {[%clk 0:01:16]} 15. Ne4 {[%clk 0:01:45]}  g6 {[%clk 0:01:08]} 16. Nd6+ {[%clk 0:01:41]}  Kg7 {[%clk 0:01:06]} 17. Rac1 {[%clk 0:01:31]}  Na5 {[%clk 0:01:03]} 18. Qa4 {[%clk 0:01:24]}  Bd7 {[%clk 0:00:57]} 19. Qxd4 {[%clk 0:01:22]}  Nc6 {[%clk 0:00:48]} 20. Qd2 {[%clk 0:01:14]}  Nce7 {[%clk 0:00:30]} 21. e4 {[%clk 0:00:59]}  Nc7 {[%clk 0:00:15]} 22. Nb7 {[%clk 0:00:54]} 1-0

[Event "January 2 Early 2024"]
[Site "https://www.chess.com"]
[Date "2024.01.02"]
[Round "11"]
[White "Bueno, Alfeu Junior Varela"]
[Black "Tikhonov, Viacheslav"]
[Result "1-0"]
[Board "111"]
[TimeControl "180+1"]
[WhiteFideId "2108879"]
[BlackFideId "44196407"]
[WhiteElo "2351"]
[BlackElo "2463"]
[WhiteTeam "BRA"]
[BlackTeam "RUS"]
[WhiteClock "0:00:08"]
[BlackClock "0:00:00"]

1. e4 {[%clk 0:03:00]}  c5 {[%clk 0:03:00]} 2. Nc3 {[%clk 0:03:01]}  g6 {[%clk 0:02:59]} 3. f4 {[%clk 0:03:01]}  Bg7 {[%clk 0:02:59]} 4. Nf3 {[%clk 0:03:02]}  Nc6 {[%clk 0:03:00]} 5. Bb5 {[%clk 0:03:02]}  Nd4 {[%clk 0:03:00]} 6. O-O {[%clk 0:03:02]}  Nxb5 {[%clk 0:02:58]} 7. Nxb5 {[%clk 0:03:03]}  a6 {[%clk 0:02:57]} 8. Nc3 {[%clk 0:03:03]}  b5 {[%clk 0:02:57]} 9. d3 {[%clk 0:03:02]}  Bb7 {[%clk 0:02:57]} 10. Qe1 {[%clk 0:02:55]}  d6 {[%clk 0:02:52]} 11. f5 {[%clk 0:02:44]}  Nf6 {[%clk 0:02:50]} 12. Kh1 {[%clk 0:02:42]}  b4 {[%clk 0:02:47]} 13. Ne2 {[%clk 0:02:38]}  Ng4 {[%clk 0:02:43]} 14. Qh4 {[%clk 0:02:32]}  Ne5 {[%clk 0:02:34]} 15. Bg5 {[%clk 0:01:59]}  h6 {[%clk 0:02:13]} 16. Be3 {[%clk 0:01:25]}  g5 {[%clk 0:02:05]} 17. Qh5 {[%clk 0:01:20]}  Bf6 {[%clk 0:02:05]} 18. Nxe5 {[%clk 0:00:51]}  Bxe5 {[%clk 0:02:03]} 19. f6 {[%clk 0:00:51]}  Bxf6 {[%clk 0:02:01]} 20. Ng3 {[%clk 0:00:47]}  Qc7 {[%clk 0:01:47]} 21. Nf5 {[%clk 0:00:47]}  O-O-O {[%clk 0:01:39]} 22. Qxf7 {[%clk 0:00:46]}  Kb8 {[%clk 0:01:33]} 23. Rab1 {[%clk 0:00:43]}  Rdf8 {[%clk 0:01:29]} 24. Qc4 {[%clk 0:00:38]}  Qd7 {[%clk 0:01:23]} 25. a3 {[%clk 0:00:35]}  a5 {[%clk 0:01:19]} 26. axb4 {[%clk 0:00:33]}  axb4 {[%clk 0:01:20]} 27. c3 {[%clk 0:00:33]}  e6 {[%clk 0:01:21]} 28. Ng3 {[%clk 0:00:32]}  h5 {[%clk 0:01:07]} 29. cxb4 {[%clk 0:00:23]}  d5 {[%clk 0:01:04]} 30. Qxc5 {[%clk 0:00:21]}  d4 {[%clk 0:01:04]} 31. Rxf6 {[%clk 0:00:16]}  Rxf6 {[%clk 0:00:37]} 32. Bxd4 {[%clk 0:00:16]}  Rc8 {[%clk 0:00:00]} 33. Be5+ {[%clk 0:00:08]} 1-0

[Event "January 2 Early 2024"]
[Site "https://www.chess.com"]
[Date "2024.01.02"]
[Round "11"]
[White "Morales Garcia, Sergio Joshafatt"]
[Black "Gerbelli Neto, Eduardo"]
[Result "1-0"]
[Board "112"]
[TimeControl "180+1"]
[WhiteFideId "5106249"]
[BlackFideId "2103281"]
[WhiteElo "2428"]
[BlackElo "2342"]
[WhiteTeam "MEX"]
[BlackTeam "BRA"]
[WhiteClock "0:01:25"]
[BlackClock "0:00:00"]

1. d4 {[%clk 0:03:00]}  d5 {[%clk 0:02:59]} 2. c4 {[%clk 0:03:00]}  c6 {[%clk 0:02:58]} 3. Nf3 {[%clk 0:03:01]}  Nf6 {[%clk 0:02:59]} 4. Nc3 {[%clk 0:03:01]}  e6 {[%clk 0:02:59]} 5. Bg5 {[%clk 0:03:02]}  dxc4 {[%clk 0:02:59]} 6. e4 {[%clk 0:02:58]}  b5 {[%clk 0:02:59]} 7. e5 {[%clk 0:02:57]}  h6 {[%clk 0:02:59]} 8. Bh4 {[%clk 0:02:57]}  g5 {[%clk 0:02:59]} 9. Bg3 {[%clk 0:02:57]}  Nd5 {[%clk 0:02:57]} 10. Nd2 {[%clk 0:02:56]}  Nxc3 {[%clk 0:02:53]} 11. bxc3 {[%clk 0:02:57]}  Bb7 {[%clk 0:02:47]} 12. Ne4 {[%clk 0:02:45]}  Nd7 {[%clk 0:02:46]} 13. Be2 {[%clk 0:02:41]}  c5 {[%clk 0:02:46]} 14. Bf3 {[%clk 0:02:37]}  Bd5 {[%clk 0:02:36]} 15. O-O {[%clk 0:02:26]}  Be7 {[%clk 0:02:24]} 16. Nd6+ {[%clk 0:02:22]}  Bxd6 {[%clk 0:02:24]} 17. Bxd5 {[%clk 0:02:23]}  exd5 {[%clk 0:02:22]} 18. exd6 {[%clk 0:02:23]}  O-O {[%clk 0:02:09]} 19. f4 {[%clk 0:02:14]}  cxd4 {[%clk 0:02:06]} 20. fxg5 {[%clk 0:02:04]}  Qxg5 {[%clk 0:01:46]} 21. Qxd4 {[%clk 0:02:00]}  Rae8 {[%clk 0:01:10]} 22. Rf4 {[%clk 0:01:57]}  h5 {[%clk 0:00:46]} 23. Raf1 {[%clk 0:01:56]}  Re2 {[%clk 0:00:28]} 24. Kh1 {[%clk 0:01:49]}  Nb6 {[%clk 0:00:07]} 25. Rf5 {[%clk 0:01:41]}  Qe3 {[%clk 0:00:00]} 26. Qf6 {[%clk 0:01:25]} 1-0

[Event "January 2 Early 2024"]
[Site "https://www.chess.com"]
[Date "2024.01.02"]
[Round "11"]
[White "Mazurkiewicz, Michal"]
[Black "Blokhin, Sofia"]
[Result "1-0"]
[Board "116"]
[TimeControl "180+1"]
[WhiteFideId "1124943"]
[BlackFideId "4508190"]
[WhiteElo "2409"]
[BlackElo "2302"]
[WhiteTeam "POL"]
[BlackTeam "EST"]
[WhiteClock "0:00:07"]
[BlackClock "0:00:00"]

1. e4 {[%clk 0:02:59]}  c5 {[%clk 0:02:59]} 2. Nf3 {[%clk 0:03:00]}  d6 {[%clk 0:02:58]} 3. g3 {[%clk 0:03:00]}  Nc6 {[%clk 0:02:56]} 4. Bg2 {[%clk 0:03:00]}  e6 {[%clk 0:02:55]} 5. d3 {[%clk 0:03:00]}  Nf6 {[%clk 0:02:55]} 6. O-O {[%clk 0:03:00]}  Be7 {[%clk 0:02:55]} 7. Re1 {[%clk 0:03:00]}  O-O {[%clk 0:02:55]} 8. c3 {[%clk 0:03:00]}  d5 {[%clk 0:02:55]} 9. e5 {[%clk 0:02:59]}  Nd7 {[%clk 0:02:55]} 10. Bf4 {[%clk 0:02:59]}  h6 {[%clk 0:02:53]} 11. h4 {[%clk 0:02:59]}  b5 {[%clk 0:02:47]} 12. Nbd2 {[%clk 0:02:59]}  Bb7 {[%clk 0:02:47]} 13. Nf1 {[%clk 0:02:59]}  Re8 {[%clk 0:02:37]} 14. Qd2 {[%clk 0:02:58]}  Nf8 {[%clk 0:02:36]} 15. h5 {[%clk 0:02:58]}  Nd7 {[%clk 0:02:22]} 16. N1h2 {[%clk 0:02:58]}  f5 {[%clk 0:02:15]} 17. exf6 {[%clk 0:02:57]}  Bxf6 {[%clk 0:02:13]} 18. Ng4 {[%clk 0:02:57]}  Qe7 {[%clk 0:02:03]} 19. Re2 {[%clk 0:02:29]}  e5 {[%clk 0:01:58]} 20. Rae1 {[%clk 0:02:25]}  Qd6 {[%clk 0:01:42]} 21. d4 {[%clk 0:02:01]}  cxd4 {[%clk 0:01:30]} 22. cxd4 {[%clk 0:02:01]}  exf4 {[%clk 0:01:01]} 23. Rxe8+ {[%clk 0:02:00]}  Rxe8 {[%clk 0:01:01]} 24. Rxe8+ {[%clk 0:02:00]}  Kf7 {[%clk 0:01:00]} 25. Qe2 {[%clk 0:01:08]}  Bxd4 {[%clk 0:00:53]} 26. Bh3 {[%clk 0:00:39]}  Ne7 {[%clk 0:00:40]} 27. Rxe7+ {[%clk 0:00:35]}  Qxe7 {[%clk 0:00:39]} 28. Qxe7+ {[%clk 0:00:33]}  Kxe7 {[%clk 0:00:39]} 29. Nxd4 {[%clk 0:00:33]}  fxg3 {[%clk 0:00:37]} 30. fxg3 {[%clk 0:00:34]}  a6 {[%clk 0:00:35]} 31. Nf5+ {[%clk 0:00:25]}  Kf8 {[%clk 0:00:31]} 32. Kf2 {[%clk 0:00:26]}  Nc5 {[%clk 0:00:29]} 33. Ne5 {[%clk 0:00:22]}  Bc8 {[%clk 0:00:26]} 34. Ng6+ {[%clk 0:00:14]}  Ke8 {[%clk 0:00:15]} 35. Nd6+ {[%clk 0:00:14]}  Kd8 {[%clk 0:00:13]} 36. Nxc8 {[%clk 0:00:14]}  Ne4+ {[%clk 0:00:12]} 37. Kg2 {[%clk 0:00:14]}  d4 {[%clk 0:00:08]} 38. Kf3 {[%clk 0:00:11]}  Ng5+ {[%clk 0:00:05]} 39. Kg2 {[%clk 0:00:10]}  Nxh3 {[%clk 0:00:06]} 40. Nd6 {[%clk 0:00:08]}  d3 {[%clk 0:00:05]} 41. Ne4 {[%clk 0:00:08]}  Ng5 {[%clk 0:00:04]} 42. Nd2 {[%clk 0:00:08]}  Ne6 {[%clk 0:00:00]} 43. Kf3 {[%clk 0:00:07]} 1-0

[Event "January 2 Early 2024"]
[Site "https://www.chess.com"]
[Date "2024.01.02"]
[Round "11"]
[White "Szente Varga, Fruzsina"]
[Black "Omariev, Maksim"]
[Result "1-0"]
[Board "117"]
[TimeControl "180+1"]
[WhiteFideId "712264"]
[BlackFideId "4193423"]
[WhiteElo "2298"]
[BlackElo "2404"]
[WhiteTeam "HUN"]
[BlackTeam "RUS"]
[WhiteClock "0:01:17"]
[BlackClock "0:00:00"]

1. e4 {[%clk 0:03:00]}  h5 {[%clk 0:02:45]} 2. d4 {[%clk 0:02:59]}  h4 {[%clk 0:02:46]} 3. Nc3 {[%clk 0:02:58]}  d6 {[%clk 0:02:46]} 4. Be3 {[%clk 0:02:57]}  h3 {[%clk 0:02:45]} 5. Nxh3 {[%clk 0:02:50]}  Bxh3 {[%clk 0:02:45]} 6. gxh3 {[%clk 0:02:51]}  e5 {[%clk 0:02:45]} 7. dxe5 {[%clk 0:02:49]}  dxe5 {[%clk 0:02:46]} 8. Qxd8+ {[%clk 0:02:48]}  Kxd8 {[%clk 0:02:47]} 9. O-O-O+ {[%clk 0:02:49]}  Nd7 {[%clk 0:02:47]} 10. Bc4 {[%clk 0:02:33]}  f6 {[%clk 0:02:29]} 11. Be6 {[%clk 0:02:32]}  Bd6 {[%clk 0:02:30]} 12. Nb5 {[%clk 0:02:29]}  Ke7 {[%clk 0:02:30]} 13. Bxd7 {[%clk 0:02:26]}  Kxd7 {[%clk 0:02:31]} 14. Nxd6 {[%clk 0:02:27]}  cxd6 {[%clk 0:02:30]} 15. Bc5 {[%clk 0:02:28]}  Kc6 {[%clk 0:02:28]} 16. Bxd6 {[%clk 0:02:26]}  Nh6 {[%clk 0:02:27]} 17. Bb4 {[%clk 0:02:22]}  Nf7 {[%clk 0:02:16]} 18. Rd3 {[%clk 0:02:20]}  Ng5 {[%clk 0:01:56]} 19. Rg1 {[%clk 0:02:08]}  a5 {[%clk 0:01:49]} 20. Bd2 {[%clk 0:02:06]}  Nxh3 {[%clk 0:01:15]} 21. Rxg7 {[%clk 0:02:04]}  Nxf2 {[%clk 0:01:16]} 22. Rc3+ {[%clk 0:02:02]}  Kd6 {[%clk 0:01:10]} 23. Rxb7 {[%clk 0:01:58]}  Nxe4 {[%clk 0:01:06]} 24. Rb6+ {[%clk 0:01:59]}  Kd7 {[%clk 0:00:56]} 25. Rd3+ {[%clk 0:01:42]}  Kc7 {[%clk 0:00:51]} 26. Be3 {[%clk 0:01:41]}  Rxh2 {[%clk 0:00:44]} 27. b3 {[%clk 0:01:37]}  a4 {[%clk 0:00:41]} 28. Kb2 {[%clk 0:01:34]}  a3+ {[%clk 0:00:38]} 29. Kc1 {[%clk 0:01:32]}  Rg8 {[%clk 0:00:08]} 30. Rb4 {[%clk 0:01:26]}  Rh1+ {[%clk 0:00:02]} 31. Rd1 {[%clk 0:01:26]}  Rxd1+ {[%clk 0:00:02]} 32. Kxd1 {[%clk 0:01:27]}  Nc3+ {[%clk 0:00:03]} 33. Kd2 {[%clk 0:01:21]}  Nxa2 {[%clk 0:00:02]} 34. Ra4 {[%clk 0:01:21]}  Rg2+ {[%clk 0:00:01]} 35. Kd3 {[%clk 0:01:20]}  e4+ {[%clk 0:00:00]} 36. Rxe4 {[%clk 0:01:17]} 1-0

[Event "January 2 Early 2024"]
[Site "https://www.chess.com"]
[Date "2024.01.02"]
[Round "11"]
[White "Samaganova, Aleksandra"]
[Black "Biriukov, Ilja"]
[Result "0-1"]
[Board "120"]
[TimeControl "180+1"]
[WhiteFideId "13800221"]
[BlackFideId "4113373"]
[WhiteElo "2388"]
[BlackElo "2221"]
[WhiteTeam "KGZ"]
[BlackTeam "RUS"]
[WhiteClock "0:00:00"]
[BlackClock "0:00:31"]

1. c4 {[%clk 0:03:00]}  e5 {[%clk 0:02:58]} 2. Nc3 {[%clk 0:02:53]}  f5 {[%clk 0:02:57]} 3. g3 {[%clk 0:02:52]}  Nf6 {[%clk 0:02:56]} 4. Bg2 {[%clk 0:02:52]}  Bc5 {[%clk 0:02:55]} 5. e3 {[%clk 0:02:52]}  Nc6 {[%clk 0:02:54]} 6. Nge2 {[%clk 0:02:51]}  e4 {[%clk 0:02:53]} 7. d4 {[%clk 0:02:35]}  exd3 {[%clk 0:02:52]} 8. Qxd3 {[%clk 0:02:35]}  d6 {[%clk 0:02:52]} 9. b3 {[%clk 0:02:31]}  O-O {[%clk 0:02:48]} 10. O-O {[%clk 0:02:31]}  Bd7 {[%clk 0:02:47]} 11. Bb2 {[%clk 0:02:30]}  Ne5 {[%clk 0:02:41]} 12. Qc2 {[%clk 0:02:26]}  c6 {[%clk 0:02:41]} 13. Rad1 {[%clk 0:02:21]}  Qc7 {[%clk 0:02:40]} 14. Na4 {[%clk 0:02:10]}  Rae8 {[%clk 0:02:27]} 15. Nxc5 {[%clk 0:01:59]}  dxc5 {[%clk 0:02:28]} 16. h3 {[%clk 0:01:54]}  Ne4 {[%clk 0:02:12]} 17. Nc3 {[%clk 0:01:45]}  Nxc3 {[%clk 0:01:52]} 18. Qxc3 {[%clk 0:01:42]}  Rf7 {[%clk 0:01:44]} 19. Rd2 {[%clk 0:01:31]}  Bc8 {[%clk 0:01:43]} 20. Rfd1 {[%clk 0:01:30]}  b5 {[%clk 0:01:37]} 21. cxb5 {[%clk 0:01:27]}  cxb5 {[%clk 0:01:38]} 22. Rc1 {[%clk 0:01:22]}  c4 {[%clk 0:01:37]} 23. bxc4 {[%clk 0:01:15]}  bxc4 {[%clk 0:01:36]} 24. Ba3 {[%clk 0:01:11]}  Nd3 {[%clk 0:01:28]} 25. Rxd3 {[%clk 0:00:41]}  cxd3 {[%clk 0:01:26]} 26. Qxc7 {[%clk 0:00:41]}  Rxc7 {[%clk 0:01:24]} 27. Rxc7 {[%clk 0:00:40]}  d2 {[%clk 0:01:24]} 28. Bf3 {[%clk 0:00:26]}  f4 {[%clk 0:01:01]} 29. gxf4 {[%clk 0:00:13]}  Bxh3 {[%clk 0:00:58]} 30. Bb2 {[%clk 0:00:10]}  h5 {[%clk 0:00:50]} 31. Rxg7+ {[%clk 0:00:08]}  Kf8 {[%clk 0:00:50]} 32. Rb7 {[%clk 0:00:06]}  Bg4 {[%clk 0:00:49]} 33. Ba3+ {[%clk 0:00:02]}  Kg8 {[%clk 0:00:47]} 34. Bd5+ {[%clk 0:00:02]}  Kh8 {[%clk 0:00:42]} 35. Rb1 {[%clk 0:00:01]}  d1=Q+ {[%clk 0:00:34]} 36. Rxd1 {[%clk 0:00:01]}  Bxd1 {[%clk 0:00:35]} 37. Bb2+ {[%clk 0:00:02]}  Kh7 {[%clk 0:00:34]} 38. f5 {[%clk 0:00:02]}  Rd8 {[%clk 0:00:32]} 39. e4 {[%clk 0:00:00]}  Bf3 {[%clk 0:00:31]} 0-1

[Event "January 2 Early 2024"]
[Site "https://www.chess.com"]
[Date "2024.01.02"]
[Round "11"]
[White "Kohler, Aran"]
[Black "Andersson, Bjorn 1960"]
[Result "1-0"]
[Board "121"]
[TimeControl "180+1"]
[WhiteFideId "1002856"]
[BlackFideId "1700545"]
[WhiteElo "2233"]
[BlackElo "2377"]
[WhiteTeam "NED"]
[BlackTeam "SWE"]
[WhiteClock "0:00:11"]
[BlackClock "0:00:07"]

1. Nf3 {[%clk 0:03:00]}  Nf6 {[%clk 0:02:55]} 2. d4 {[%clk 0:03:01]}  d5 {[%clk 0:02:55]} 3. Bg5 {[%clk 0:03:01]}  e6 {[%clk 0:02:52]} 4. e3 {[%clk 0:03:00]}  Be7 {[%clk 0:02:50]} 5. Nbd2 {[%clk 0:03:00]}  O-O {[%clk 0:02:50]} 6. Bd3 {[%clk 0:03:00]}  c5 {[%clk 0:02:50]} 7. c3 {[%clk 0:03:00]}  Nc6 {[%clk 0:02:50]} 8. h4 {[%clk 0:03:00]}  Re8 {[%clk 0:02:45]} 9. Ne5 {[%clk 0:02:53]}  cxd4 {[%clk 0:02:35]} 10. exd4 {[%clk 0:02:49]}  Nxe5 {[%clk 0:02:31]} 11. dxe5 {[%clk 0:02:49]}  Nd7 {[%clk 0:02:32]} 12. Qh5 {[%clk 0:02:47]}  g6 {[%clk 0:02:30]} 13. Bxe7 {[%clk 0:02:44]}  Qxe7 {[%clk 0:02:27]} 14. Qe2 {[%clk 0:02:41]}  Nc5 {[%clk 0:02:10]} 15. Bc2 {[%clk 0:02:39]}  b6 {[%clk 0:02:07]} 16. f4 {[%clk 0:02:36]}  Ba6 {[%clk 0:02:07]} 17. Qf3 {[%clk 0:02:31]}  Rac8 {[%clk 0:01:55]} 18. h5 {[%clk 0:02:27]}  Kg7 {[%clk 0:01:24]} 19. h6+ {[%clk 0:02:16]}  Kg8 {[%clk 0:01:23]} 20. Qe3 {[%clk 0:02:05]}  Red8 {[%clk 0:00:56]} 21. Nf3 {[%clk 0:02:03]}  b5 {[%clk 0:00:51]} 22. O-O-O {[%clk 0:02:01]}  b4 {[%clk 0:00:48]} 23. cxb4 {[%clk 0:01:57]}  Ne4 {[%clk 0:00:35]} 24. Rd4 {[%clk 0:01:43]}  Ng3 {[%clk 0:00:21]} 25. Rh3 {[%clk 0:01:34]}  Nf5 {[%clk 0:00:21]} 26. Qd2 {[%clk 0:01:33]}  Nxd4 {[%clk 0:00:19]} 27. Nxd4 {[%clk 0:01:33]}  Rc4 {[%clk 0:00:19]} 28. b5 {[%clk 0:01:20]}  Bb7 {[%clk 0:00:17]} 29. Kb1 {[%clk 0:01:06]}  Qc5 {[%clk 0:00:16]} 30. Rd3 {[%clk 0:01:06]}  Rc8 {[%clk 0:00:12]} 31. g4 {[%clk 0:01:05]}  a6 {[%clk 0:00:12]} 32. f5 {[%clk 0:01:04]}  axb5 {[%clk 0:00:10]} 33. fxe6 {[%clk 0:01:03]}  fxe6 {[%clk 0:00:11]} 34. a3 {[%clk 0:00:41]}  Qb6 {[%clk 0:00:05]} 35. Bb3 {[%clk 0:00:32]}  Rf8 {[%clk 0:00:05]} 36. Ka2 {[%clk 0:00:32]}  Ba6 {[%clk 0:00:02]} 37. Nxe6 {[%clk 0:00:29]}  Qxe6 {[%clk 0:00:02]} 38. Rxd5 {[%clk 0:00:29]}  Qf7 {[%clk 0:00:01]} 39. Rd7 {[%clk 0:00:27]}  Qe6 {[%clk 0:00:02]} 40. Rd6 {[%clk 0:00:24]}  Qc8 {[%clk 0:00:01]} 41. Qd5+ {[%clk 0:00:20]}  Kh8 {[%clk 0:00:02]} 42. Rd7 {[%clk 0:00:18]}  Rc7 {[%clk 0:00:02]} 43. Rd6 {[%clk 0:00:13]}  Bb7 {[%clk 0:00:01]} 44. Qd4 {[%clk 0:00:11]}  Rc4 {[%clk 0:00:02]} 45. Bxc4 {[%clk 0:00:10]}  Qxc4+ {[%clk 0:00:03]} 46. Qxc4 {[%clk 0:00:11]}  bxc4 {[%clk 0:00:04]} 47. e6 {[%clk 0:00:11]}  Bc8 {[%clk 0:00:04]} 48. e7 {[%clk 0:00:11]}  Re8 {[%clk 0:00:05]} 49. Rd8 {[%clk 0:00:11]}  Bd7 {[%clk 0:00:05]} 50. Rxd7 {[%clk 0:00:11]}  Kg8 {[%clk 0:00:05]} 51. Rc7 {[%clk 0:00:11]}  Kf7 {[%clk 0:00:06]} 52. a4 {[%clk 0:00:11]}  Rxe7 {[%clk 0:00:07]} 53. Rxe7+ {[%clk 0:00:10]}  Kxe7 {[%clk 0:00:07]} 54. Ka3 {[%clk 0:00:10]}  Kd6 {[%clk 0:00:07]} 55. Kb4 {[%clk 0:00:11]} 1-0